{"text_format":"3","workbook":"xlsx","n_sheets":1,"sheets":["Sheet1"],"not_rendered":{"macros":1},"read":"whole","date_system":"1900"}

{"sheet":"Sheet1","index":0,"n_rows":459,"n_cols":7,"rows_kept":459}
["AOU Checklist of NA Birds","Obs = x","Observed LA birds",null,"List of Observed LA birds"]
[{"$nulls":6},"Run macro MakeTextFile to "]
["Red-throated Loon",null,{"$f":"IF(B3=\"x\",A3,\" \")","v":" "},{"$f":"INDEX($C$3:$C$459,SMALL(IF($C$3:$C$459<>\" \",ROW($C$3:$C$459),1000),ROW()-ROW($D$3)+1)-ROW($D$3)+1)","v":{"$error":"#REF!"}},{"$f":"IF(ISERROR(D3),\" \",D3)","v":" "},null,"generate a text file of birds seen"]
["Common Loon",null,{"$f":"IF(B4=\"x\",A4,\" \")","v":" "},{"$error":"#REF!"},{"$f":"IF(ISERROR(D4),\" \",D4)","v":" "}]
["Least Grebe",null," ",{"$error":"#REF!"}," "]
["Pied-billed Grebe",null," ",{"$error":"#REF!"}," "]
["Horned Grebe",null," ",{"$error":"#REF!"}," "]
["Red-necked Grebe",null," ",{"$error":"#REF!"}," "]
["Eared Grebe",null," ",{"$error":"#REF!"}," "]
["Western Grebe",null," ",{"$error":"#REF!"}," "]
["Yellow-nosed Albatross",null," ",{"$error":"#REF!"}," "]
["Cory's Shearwater",null," ",{"$error":"#REF!"}," "]
["Greater Shearwater",null," ",{"$error":"#REF!"}," "]
["Audubon's Shearwater",null," ",{"$error":"#REF!"}," "]
["Wilson's Storm-Petrel",null," ",{"$error":"#REF!"}," "]
["Leach's Storm-Petrel",null," ",{"$error":"#REF!"}," "]
["storm-petrel, sp.",null," ",{"$error":"#REF!"}," "]
["Red-billed Tropicbird",null," ",{"$error":"#REF!"}," "]
["Masked Booby",null," ",{"$error":"#REF!"}," "]
["Brown Booby",null," ",{"$error":"#REF!"}," "]
["Red-footed Booby",null," ",{"$error":"#REF!"}," "]
["Northern Gannet",null," ",{"$error":"#REF!"}," "]
["American White Pelican",null," ",{"$error":"#REF!"}," "]
["Brown Pelican",null," ",{"$error":"#REF!"}," "]
["Neotropic Cormorant",null," ",{"$error":"#REF!"}," "]
["Double-crested Cormorant",null," ",{"$error":"#REF!"}," "]
["Anhinga",null," ",{"$error":"#REF!"}," "]
["Magnificent Frigatebird",null," ",{"$error":"#REF!"}," "]
["American Bittern",null," ",{"$error":"#REF!"}," "]
["Least Bittern",null," ",{"$error":"#REF!"}," "]
["Great Blue Heron",null," ",{"$error":"#REF!"}," "]
["\"Great White\" Heron",null," ",{"$error":"#REF!"}," "]
["Great Egret",null," ",{"$error":"#REF!"}," "]
["Snowy Egret",null," ",{"$error":"#REF!"}," "]
["Little Blue Heron",null," ",{"$error":"#REF!"}," "]
["Tricolored Heron",null," ",{"$error":"#REF!"}," "]
["Reddish Egret",null," ",{"$error":"#REF!"}," "]
["Cattle Egret",null," ",{"$error":"#REF!"}," "]
["Green Heron",null," ",{"$error":"#REF!"}," "]
["Black-crowned Night-Heron",null," ",{"$error":"#REF!"}," "]
["Yellow-crowned Night-Heron",null," ",{"$error":"#REF!"}," "]
["White Ibis",null," ",{"$error":"#REF!"}," "]
["Glossy Ibis",null," ",{"$error":"#REF!"}," "]
["White-faced Ibis",null," ",{"$error":"#REF!"}," "]
["Plegadis, sp.",null," ",{"$error":"#REF!"}," "]
["Roseate Spoonbill",null," ",{"$error":"#REF!"}," "]
["Wood Stork",null," ",{"$error":"#REF!"}," "]
["Black Vulture",null," ",{"$error":"#REF!"}," "]
["Turkey Vulture",null," ",{"$error":"#REF!"}," "]
["Black-bellied Whistling-Duck",null," ",{"$error":"#REF!"}," "]
["Fulvous Whistling-Duck",null," ",{"$error":"#REF!"}," "]
["Greater White-fronted Goose",null," ",{"$error":"#REF!"}," "]
["Snow Goose",null," ",{"$error":"#REF!"}," "]
["\"Blue\" Goose",null," ",{"$error":"#REF!"}," "]
["Ross's Goose",null," ",{"$error":"#REF!"}," "]
["Canada Goose",null," ",{"$error":"#REF!"}," "]
["Brant",null," ",{"$error":"#REF!"}," "]
["Trumpeter Swan",null," ",{"$error":"#REF!"}," "]
["Tundra Swan",null," ",{"$error":"#REF!"}," "]
["Wood Duck",null," ",{"$error":"#REF!"}," "]
["Gadwall",null," ",{"$error":"#REF!"}," "]
["Eurasian Wigeon",null," ",{"$error":"#REF!"}," "]
["American Wigeon",null," ",{"$error":"#REF!"}," "]
["American Black Duck",null," ",{"$error":"#REF!"}," "]
["Mallard",null," ",{"$error":"#REF!"}," "]
["Mottled Duck",null," ",{"$error":"#REF!"}," "]
["Blue-winged Teal",null," ",{"$error":"#REF!"}," "]
["Cinnamon Teal",null,{"$f":"IF(B68=\"x\",A68,\" \")","v":" "},{"$error":"#REF!"},{"$f":"IF(ISERROR(D68),\" \",D68)","v":" "}]
["Northern Shoveler",null," ",{"$error":"#REF!"}," "]
["Northern Pintail",null," ",{"$error":"#REF!"}," "]
["Green-winged Teal",null," ",{"$error":"#REF!"}," "]
["Canvasback",null," ",{"$error":"#REF!"}," "]
["Redhead",null," ",{"$error":"#REF!"}," "]
["Ring-necked Duck",null," ",{"$error":"#REF!"}," "]
["Greater Scaup",null," ",{"$error":"#REF!"}," "]
["Lesser Scaup",null," ",{"$error":"#REF!"}," "]
["King Eider",null," ",{"$error":"#REF!"}," "]
["Surf Scoter",null," ",{"$error":"#REF!"}," "]
["White-winged Scoter",null," ",{"$error":"#REF!"}," "]
["Black Scoter",null," ",{"$error":"#REF!"}," "]
["Oldsquaw",null," ",{"$error":"#REF!"}," "]
["Bufflehead",null," ",{"$error":"#REF!"}," "]
["Common Goldeneye",null," ",{"$error":"#REF!"}," "]
["Hooded Merganser",null," ",{"$error":"#REF!"}," "]
["Common Merganser",null," ",{"$error":"#REF!"}," "]
["Red-breasted Merganser",null," ",{"$error":"#REF!"}," "]
["Masked Duck",null," ",{"$error":"#REF!"}," "]
["Ruddy Duck",null," ",{"$error":"#REF!"}," "]
["Osprey",null," ",{"$error":"#REF!"}," "]
["Swallow-tailed Kite",null," ",{"$error":"#REF!"}," "]
["White-tailed Kite",null," ",{"$error":"#REF!"}," "]
["Mississippi Kite",null," ",{"$error":"#REF!"}," "]
["Bald Eagle",null," ",{"$error":"#REF!"}," "]
["Northern Harrier",null," ",{"$error":"#REF!"}," "]
["Sharp-shinned Hawk",null," ",{"$error":"#REF!"}," "]
["Cooper's Hawk",null," ",{"$error":"#REF!"}," "]
["Northern Goshawk",null," ",{"$error":"#REF!"}," "]
["Harris's Hawk",null," ",{"$error":"#REF!"}," "]
["Red-shouldered Hawk",null," ",{"$error":"#REF!"}," "]
["Broad-winged Hawk",null," ",{"$error":"#REF!"}," "]
["Swainson's Hawk",null," ",{"$error":"#REF!"}," "]
["White-tailed Hawk",null," ",{"$error":"#REF!"}," "]
["Zone-tailed Hawk",null," ",{"$error":"#REF!"}," "]
["Red-tailed Hawk",null," ",{"$error":"#REF!"}," "]
["Ferruginous Hawk",null," ",{"$error":"#REF!"}," "]
["Rough-legged Hawk",null," ",{"$error":"#REF!"}," "]
["Golden Eagle",null," ",{"$error":"#REF!"}," "]
["Crested Caracara",null," ",{"$error":"#REF!"}," "]
["American Kestrel",null," ",{"$error":"#REF!"}," "]
["Merlin",null," ",{"$error":"#REF!"}," "]
["Peregrine Falcon",null," ",{"$error":"#REF!"}," "]
["Greater Prairie-Chicken",null," ",{"$error":"#REF!"}," "]
["Wild Turkey",null," ",{"$error":"#REF!"}," "]
["Northern Bobwhite",null," ",{"$error":"#REF!"}," "]
["Yellow Rail",null," ",{"$error":"#REF!"}," "]
["Black Rail",null," ",{"$error":"#REF!"}," "]
["Clapper Rail",null," ",{"$error":"#REF!"}," "]
["King Rail",null," ",{"$error":"#REF!"}," "]
["Virginia Rail",null," ",{"$error":"#REF!"}," "]
["Sora",null," ",{"$error":"#REF!"}," "]
["Purple Gallinule",null," ",{"$error":"#REF!"}," "]
["Common Moorhen",null," ",{"$error":"#REF!"}," "]
["American Coot",null," ",{"$error":"#REF!"}," "]
["Sandhill Crane",null," ",{"$error":"#REF!"}," "]
["Whooping Crane",null," ",{"$error":"#REF!"}," "]
["Black-bellied Plover",null," ",{"$error":"#REF!"}," "]
["American Golden-Plover",null," ",{"$error":"#REF!"}," "]
["Mongolian Plover",null," ",{"$error":"#REF!"}," "]
["Snowy Plover",null," ",{"$error":"#REF!"}," "]
["Wilson's Plover",null," ",{"$error":"#REF!"}," "]
["Semipalmated Plover",null," ",{"$error":"#REF!"}," "]
["Piping Plover",null,{"$f":"IF(B132=\"x\",A132,\" \")","v":" "},{"$error":"#REF!"},{"$f":"IF(ISERROR(D132),\" \",D132)","v":" "}]
["Killdeer",null," ",{"$error":"#REF!"}," "]
["American Oystercatcher",null," ",{"$error":"#REF!"}," "]
["Black-necked Stilt",null," ",{"$error":"#REF!"}," "]
["American Avocet",null," ",{"$error":"#REF!"}," "]
["Greater Yellowlegs",null," ",{"$error":"#REF!"}," "]
["Lesser Yellowlegs",null," ",{"$error":"#REF!"}," "]
["Solitary Sandpiper",null," ",{"$error":"#REF!"}," "]
["Willet",null," ",{"$error":"#REF!"}," "]
["Spotted Sandpiper",null," ",{"$error":"#REF!"}," "]
["Upland Sandpiper",null," ",{"$error":"#REF!"}," "]
["Eskimo Curlew",null," ",{"$error":"#REF!"}," "]
["Whimbrel",null," ",{"$error":"#REF!"}," "]
["Long-billed Curlew",null," ",{"$error":"#REF!"}," "]
["Black-tailed Godwit",null," ",{"$error":"#REF!"}," "]
["Hudsonian Godwit",null," ",{"$error":"#REF!"}," "]
["Marbled Godwit",null," ",{"$error":"#REF!"}," "]
["Ruddy Turnstone",null," ",{"$error":"#REF!"}," "]
["Red Knot",null," ",{"$error":"#REF!"}," "]
["Sanderling",null," ",{"$error":"#REF!"}," "]
["Semipalmated Sandpiper",null," ",{"$error":"#REF!"}," "]
["Western Sandpiper",null," ",{"$error":"#REF!"}," "]
["Least Sandpiper",null," ",{"$error":"#REF!"}," "]
["White-rumped Sandpiper",null," ",{"$error":"#REF!"}," "]
["Baird's Sandpiper",null," ",{"$error":"#REF!"}," "]
["Pectoral Sandpiper",null," ",{"$error":"#REF!"}," "]
["Purple Sandpiper",null," ",{"$error":"#REF!"}," "]
["Dunlin",null," ",{"$error":"#REF!"}," "]
["Curlew Sandpiper",null," ",{"$error":"#REF!"}," "]
["Stilt Sandpiper",null," ",{"$error":"#REF!"}," "]
["Buff-breasted Sandpiper",null," ",{"$error":"#REF!"}," "]
["Ruff",null," ",{"$error":"#REF!"}," "]
["Short-billed Dowitcher",null," ",{"$error":"#REF!"}," "]
["Long-billed Dowitcher",null," ",{"$error":"#REF!"}," "]
["Limnodromus, sp.",null," ",{"$error":"#REF!"}," "]
["Common Snipe",null," ",{"$error":"#REF!"}," "]
["American Woodcock",null," ",{"$error":"#REF!"}," "]
["Wilson's Phalarope",null," ",{"$error":"#REF!"}," "]
["Red-necked Phalarope",null," ",{"$error":"#REF!"}," "]
["Red Phalarope",null," ",{"$error":"#REF!"}," "]
["Pomarine Jaeger",null," ",{"$error":"#REF!"}," "]
["Parasitic Jaeger",null," ",{"$error":"#REF!"}," "]
["Long-tailed Jaeger",null," ",{"$error":"#REF!"}," "]
["Laughing Gull",null," ",{"$error":"#REF!"}," "]
["Franklin's Gull",null," ",{"$error":"#REF!"}," "]
["Little Gull",null," ",{"$error":"#REF!"}," "]
["Bonaparte's Gull",null," ",{"$error":"#REF!"}," "]
["Ring-billed Gull",null," ",{"$error":"#REF!"}," "]
["California Gull",null," ",{"$error":"#REF!"}," "]
["Herring Gull",null," ",{"$error":"#REF!"}," "]
["Thayer's Gull",null," ",{"$error":"#REF!"}," "]
["Lesser Black-backed Gull",null," ",{"$error":"#REF!"}," "]
["Glaucous Gull",null," ",{"$error":"#REF!"}," "]
["Great Black-backed Gull",null," ",{"$error":"#REF!"}," "]
["Sabine's Gull",null," ",{"$error":"#REF!"}," "]
["Black-legged Kittiwake",null," ",{"$error":"#REF!"}," "]
["Gull-billed Tern",null," ",{"$error":"#REF!"}," "]
["Caspian Tern",null," ",{"$error":"#REF!"}," "]
["Royal Tern",null," ",{"$error":"#REF!"}," "]
["Sandwich Tern",null," ",{"$error":"#REF!"}," "]
["Common Tern",null," ",{"$error":"#REF!"}," "]
["Arctic Tern",null," ",{"$error":"#REF!"}," "]
["Forster's Tern",null," ",{"$error":"#REF!"}," "]
["Least Tern",null," ",{"$error":"#REF!"}," "]
["Bridled Tern",null,{"$f":"IF(B196=\"x\",A196,\" \")","v":" "},{"$error":"#REF!"},{"$f":"IF(ISERROR(D196),\" \",D196)","v":" "}]
["Sooty Tern",null," ",{"$error":"#REF!"}," "]
["Black Tern",null," ",{"$error":"#REF!"}," "]
["Brown Noddy",null," ",{"$error":"#REF!"}," "]
["Black Skimmer",null," ",{"$error":"#REF!"}," "]
["Ancient Murrelet",null," ",{"$error":"#REF!"}," "]
["Rock Dove",null," ",{"$error":"#REF!"}," "]
["Band-tailed Pigeon",null," ",{"$error":"#REF!"}," "]
["Eurasian Collared-Dove",null," ",{"$error":"#REF!"}," "]
["White-winged Dove",null," ",{"$error":"#REF!"}," "]
["Mourning Dove",null," ",{"$error":"#REF!"}," "]
["Passenger Pigeon",null," ",{"$error":"#REF!"}," "]
["Common Ground-Dove",null," ",{"$error":"#REF!"}," "]
["Monk Parakeet",null," ",{"$error":"#REF!"}," "]
["Black-billed Cuckoo",null," ",{"$error":"#REF!"}," "]
["Yellow-billed Cuckoo",null," ",{"$error":"#REF!"}," "]
["Greater Roadrunner",null," ",{"$error":"#REF!"}," "]
["Groove-billed Ani",null," ",{"$error":"#REF!"}," "]
["Barn Owl",null," ",{"$error":"#REF!"}," "]
["Flammulated Owl",null," ",{"$error":"#REF!"}," "]
["Eastern Screech-Owl",null," ",{"$error":"#REF!"}," "]
["Great Horned Owl",null," ",{"$error":"#REF!"}," "]
["Snowy Owl",null," ",{"$error":"#REF!"}," "]
["Burrowing Owl",null," ",{"$error":"#REF!"}," "]
["Barred Owl",null," ",{"$error":"#REF!"}," "]
["Long-eared Owl",null," ",{"$error":"#REF!"}," "]
["Short-eared Owl",null," ",{"$error":"#REF!"}," "]
["Northern Saw-whet Owl",null," ",{"$error":"#REF!"}," "]
["Lesser Nighthawk",null," ",{"$error":"#REF!"}," "]
["Common Nighthawk",null," ",{"$error":"#REF!"}," "]
["Antillean Nighthawk",null," ",{"$error":"#REF!"}," "]
["Chuck-will's-widow",null," ",{"$error":"#REF!"}," "]
["Whip-poor-will",null," ",{"$error":"#REF!"}," "]
["Chimney Swift",null," ",{"$error":"#REF!"}," "]
["Vaux's Swift",null," ",{"$error":"#REF!"}," "]
["Broad-billed Hummingbird",null," ",{"$error":"#REF!"}," "]
["Buff-bellied Hummingbird",null," ",{"$error":"#REF!"}," "]
["Blue-throated Hummingbird",null," ",{"$error":"#REF!"}," "]
["Ruby-throated Hummingbird",null," ",{"$error":"#REF!"}," "]
["Black-chinned Hummingbird",null," ",{"$error":"#REF!"}," "]
["Anna's Hummingbird",null," ",{"$error":"#REF!"}," "]
["Calliope Hummingbird",null," ",{"$error":"#REF!"}," "]
["Broad-tailed Hummingbird",null," ",{"$error":"#REF!"}," "]
["Rufous Hummingbird",null," ",{"$error":"#REF!"}," "]
["Allen's Hummingbird",null," ",{"$error":"#REF!"}," "]
["Belted Kingfisher",null," ",{"$error":"#REF!"}," "]
["Red-headed Woodpecker",null," ",{"$error":"#REF!"}," "]
["Red-bellied Woodpecker",null," ",{"$error":"#REF!"}," "]
["Williamson's Sapsucker",null," ",{"$error":"#REF!"}," "]
["Yellow-bellied Sapsucker",null," ",{"$error":"#REF!"}," "]
["Red-naped Sapsucker",null," ",{"$error":"#REF!"}," "]
["Downy Woodpecker",null," ",{"$error":"#REF!"}," "]
["Hairy Woodpecker",null," ",{"$error":"#REF!"}," "]
["Red-cockaded Woodpecker",null," ",{"$error":"#REF!"}," "]
["Northern \"Yellow-shafted\" Flicker",null," ",{"$error":"#REF!"}," "]
["\"Red-shafted\" Flicker",null," ",{"$error":"#REF!"}," "]
["Pileated Woodpecker",null," ",{"$error":"#REF!"}," "]
["Olive-sided Flycatcher",null," ",{"$error":"#REF!"}," "]
["Western Wood-Pewee",null," ",{"$error":"#REF!"}," "]
["Eastern Wood-Pewee",null," ",{"$error":"#REF!"}," "]
["Yellow-bellied Flycatcher",null," ",{"$error":"#REF!"}," "]
["Acadian Flycatcher",null," ",{"$error":"#REF!"}," "]
["Alder Flycatcher",null," ",{"$error":"#REF!"}," "]
["Willow Flycatcher",null," ",{"$error":"#REF!"}," "]
["Least Flycatcher",null,{"$f":"IF(B260=\"x\",A260,\" \")","v":" "},{"$error":"#REF!"},{"$f":"IF(ISERROR(D260),\" \",D260)","v":" "}]
["Hammond's Flycatcher",null," ",{"$error":"#REF!"}," "]
["Pacific-slope Flycatcher",null," ",{"$error":"#REF!"}," "]
["Cordilleran Flycatcher",null," ",{"$error":"#REF!"}," "]
["Empidonax, sp.",null," ",{"$error":"#REF!"}," "]
["Eastern Phoebe",null," ",{"$error":"#REF!"}," "]
["Say's Phoebe",null," ",{"$error":"#REF!"}," "]
["Vermilion Flycatcher",null," ",{"$error":"#REF!"}," "]
["Ash-throated Flycatcher",null," ",{"$error":"#REF!"}," "]
["Great Crested Flycatcher",null," ",{"$error":"#REF!"}," "]
["Brown-crested Flycatcher",null," ",{"$error":"#REF!"}," "]
["Great Kiskadee",null," ",{"$error":"#REF!"}," "]
["Sulphur-bellied Flycatcher",null," ",{"$error":"#REF!"}," "]
["Tropical Kingbird",null," ",{"$error":"#REF!"}," "]
["Couch's Kingbird",null," ",{"$error":"#REF!"}," "]
["Cassin's Kingbird",null," ",{"$error":"#REF!"}," "]
["Western Kingbird",null," ",{"$error":"#REF!"}," "]
["Eastern Kingbird",null," ",{"$error":"#REF!"}," "]
["Gray Kingbird",null," ",{"$error":"#REF!"}," "]
["Scissor-tailed Flycatcher",null," ",{"$error":"#REF!"}," "]
["Fork-tailed Flycatcher",null," ",{"$error":"#REF!"}," "]
["Loggerhead Shrike",null," ",{"$error":"#REF!"}," "]
["White-eyed Vireo",null," ",{"$error":"#REF!"}," "]
["Bell's Vireo",null," ",{"$error":"#REF!"}," "]
["Yellow-throated Vireo",null," ",{"$error":"#REF!"}," "]
["Plumbeous Vireo",null," ",{"$error":"#REF!"}," "]
["Cassin's Vireo",null," ",{"$error":"#REF!"}," "]
["Blue-headed Vireo",null," ",{"$error":"#REF!"}," "]
["Warbling Vireo",null," ",{"$error":"#REF!"}," "]
["Philadelphia Vireo",null," ",{"$error":"#REF!"}," "]
["Red-eyed Vireo",null," ",{"$error":"#REF!"}," "]
["Yellow-green Vireo",null," ",{"$error":"#REF!"}," "]
["Black-whiskered Vireo",null," ",{"$error":"#REF!"}," "]
["Blue Jay",null," ",{"$error":"#REF!"}," "]
["Clark's Nutcracker",null," ",{"$error":"#REF!"}," "]
["American Crow",null," ",{"$error":"#REF!"}," "]
["Fish Crow",null," ",{"$error":"#REF!"}," "]
["Horned Lark",null," ",{"$error":"#REF!"}," "]
["Purple Martin",null," ",{"$error":"#REF!"}," "]
["Tree Swallow",null," ",{"$error":"#REF!"}," "]
["Northern Rough-winged Swallow",null," ",{"$error":"#REF!"}," "]
["Bank Swallow",null," ",{"$error":"#REF!"}," "]
["Cliff Swallow",null," ",{"$error":"#REF!"}," "]
["Cave Swallow",null," ",{"$error":"#REF!"}," "]
["Barn Swallow",null," ",{"$error":"#REF!"}," "]
["Carolina Chickadee",null," ",{"$error":"#REF!"}," "]
["Tufted Titmouse",null," ",{"$error":"#REF!"}," "]
["Red-breasted Nuthatch",null," ",{"$error":"#REF!"}," "]
["White-breasted Nuthatch",null," ",{"$error":"#REF!"}," "]
["Brown-headed Nuthatch",null," ",{"$error":"#REF!"}," "]
["Brown Creeper",null," ",{"$error":"#REF!"}," "]
["Rock Wren",null," ",{"$error":"#REF!"}," "]
["Carolina Wren",null," ",{"$error":"#REF!"}," "]
["Bewick's Wren",null," ",{"$error":"#REF!"}," "]
["House Wren",null," ",{"$error":"#REF!"}," "]
["Winter Wren",null," ",{"$error":"#REF!"}," "]
["Sedge Wren",null," ",{"$error":"#REF!"}," "]
["Marsh Wren",null," ",{"$error":"#REF!"}," "]
["Golden-crowned Kinglet",null," ",{"$error":"#REF!"}," "]
["Ruby-crowned Kinglet",null," ",{"$error":"#REF!"}," "]
["Blue-gray Gnatcatcher",null," ",{"$error":"#REF!"}," "]
["Northern Wheatear",null," ",{"$error":"#REF!"}," "]
["Eastern Bluebird",null," ",{"$error":"#REF!"}," "]
["Mountain Bluebird",null," ",{"$error":"#REF!"}," "]
["Veery",null,{"$f":"IF(B324=\"x\",A324,\" \")","v":" "},{"$error":"#REF!"},{"$f":"IF(ISERROR(D324),\" \",D324)","v":" "}]
["Gray-cheeked Thrush",null," ",{"$error":"#REF!"}," "]
["Swainson's Thrush",null," ",{"$error":"#REF!"}," "]
["Hermit Thrush",null," ",{"$error":"#REF!"}," "]
["Wood Thrush",null," ",{"$error":"#REF!"}," "]
["American Robin",null," ",{"$error":"#REF!"}," "]
["Varied Thrush",null," ",{"$error":"#REF!"}," "]
["Gray Catbird",null," ",{"$error":"#REF!"}," "]
["Northern Mockingbird",null," ",{"$error":"#REF!"}," "]
["Sage Thrasher",null," ",{"$error":"#REF!"}," "]
["Brown Thrasher",null," ",{"$error":"#REF!"}," "]
["Curve-billed Thrasher",null," ",{"$error":"#REF!"}," "]
["European Starling",null," ",{"$error":"#REF!"}," "]
["White Wagtail",null," ",{"$error":"#REF!"}," "]
["American Pipit",null," ",{"$error":"#REF!"}," "]
["Sprague's Pipit",null," ",{"$error":"#REF!"}," "]
["Cedar Waxwing",null," ",{"$error":"#REF!"}," "]
["Blue-winged Warbler",null," ",{"$error":"#REF!"}," "]
["Golden-winged Warbler",null," ",{"$error":"#REF!"}," "]
["Tennessee Warbler",null," ",{"$error":"#REF!"}," "]
["Orange-crowned Warbler",null," ",{"$error":"#REF!"}," "]
["Nashville Warbler",null," ",{"$error":"#REF!"}," "]
["Virginia's Warbler",null," ",{"$error":"#REF!"}," "]
["Lucy's Warbler",null," ",{"$error":"#REF!"}," "]
["Northern Parula",null," ",{"$error":"#REF!"}," "]
["Tropical Parula",null," ",{"$error":"#REF!"}," "]
["Yellow Warbler",null," ",{"$error":"#REF!"}," "]
["Chestnut-sided Warbler",null," ",{"$error":"#REF!"}," "]
["Magnolia Warbler",null," ",{"$error":"#REF!"}," "]
["Cape May Warbler",null," ",{"$error":"#REF!"}," "]
["Black-throated Blue Warbler",null," ",{"$error":"#REF!"}," "]
["Yellow-rumped \"Myrtle\" Warbler",null," ",{"$error":"#REF!"}," "]
["\"Audubon's\" Warbler",null," ",{"$error":"#REF!"}," "]
["Black-throated Gray Warbler",null," ",{"$error":"#REF!"}," "]
["Black-throated Green Warbler",null," ",{"$error":"#REF!"}," "]
["Townsend's Warbler",null," ",{"$error":"#REF!"}," "]
["Hermit Warbler",null," ",{"$error":"#REF!"}," "]
["Blackburnian Warbler",null," ",{"$error":"#REF!"}," "]
["Yellow-throated Warbler",null," ",{"$error":"#REF!"}," "]
["Pine Warbler",null," ",{"$error":"#REF!"}," "]
["Prairie Warbler",null," ",{"$error":"#REF!"}," "]
["Palm Warbler",null," ",{"$error":"#REF!"}," "]
["Bay-breasted Warbler",null," ",{"$error":"#REF!"}," "]
["Blackpoll Warbler",null," ",{"$error":"#REF!"}," "]
["Cerulean Warbler",null," ",{"$error":"#REF!"}," "]
["Black-and-white Warbler",null," ",{"$error":"#REF!"}," "]
["American Redstart",null," ",{"$error":"#REF!"}," "]
["Prothonotary Warbler",null," ",{"$error":"#REF!"}," "]
["Worm-eating Warbler",null," ",{"$error":"#REF!"}," "]
["Swainson's Warbler",null," ",{"$error":"#REF!"}," "]
["Ovenbird",null," ",{"$error":"#REF!"}," "]
["Northern Waterthrush",null," ",{"$error":"#REF!"}," "]
["Louisiana Waterthrush",null," ",{"$error":"#REF!"}," "]
["Kentucky Warbler",null," ",{"$error":"#REF!"}," "]
["Connecticut Warbler",null," ",{"$error":"#REF!"}," "]
["Mourning Warbler",null," ",{"$error":"#REF!"}," "]
["MacGillivray's Warbler",null," ",{"$error":"#REF!"}," "]
["Common Yellowthroat",null," ",{"$error":"#REF!"}," "]
["Hooded Warbler",null," ",{"$error":"#REF!"}," "]
["Wilson's Warbler",null," ",{"$error":"#REF!"}," "]
["Canada Warbler",null," ",{"$error":"#REF!"}," "]
["Red-faced Warbler",null," ",{"$error":"#REF!"}," "]
["Painted Redstart",null," ",{"$error":"#REF!"}," "]
["Yellow-breasted Chat",null," ",{"$error":"#REF!"}," "]
["Hepatic Tanager",null,{"$f":"IF(B388=\"x\",A388,\" \")","v":" "},{"$error":"#REF!"},{"$f":"IF(ISERROR(D388),\" \",D388)","v":" "}]
["Summer Tanager",null," ",{"$error":"#REF!"}," "]
["Scarlet Tanager",null," ",{"$error":"#REF!"}," "]
["Western Tanager",null," ",{"$error":"#REF!"}," "]
["Green-tailed Towhee",null," ",{"$error":"#REF!"}," "]
["Spotted Towhee",null," ",{"$error":"#REF!"}," "]
["Eastern Towhee",null," ",{"$error":"#REF!"}," "]
["Bachman's Sparrow",null," ",{"$error":"#REF!"}," "]
["American Tree Sparrow",null," ",{"$error":"#REF!"}," "]
["Chipping Sparrow",null," ",{"$error":"#REF!"}," "]
["Clay-colored Sparrow",null," ",{"$error":"#REF!"}," "]
["Brewer's Sparrow",null," ",{"$error":"#REF!"}," "]
["Field Sparrow",null," ",{"$error":"#REF!"}," "]
["Vesper Sparrow",null," ",{"$error":"#REF!"}," "]
["Lark Sparrow",null," ",{"$error":"#REF!"}," "]
["Lark Bunting",null," ",{"$error":"#REF!"}," "]
["Savannah Sparrow",null," ",{"$error":"#REF!"}," "]
["Grasshopper Sparrow",null," ",{"$error":"#REF!"}," "]
["Henslow's Sparrow",null," ",{"$error":"#REF!"}," "]
["Le Conte's Sparrow",null," ",{"$error":"#REF!"}," "]
["Nelson's Sharp-tailed Sparrow",null," ",{"$error":"#REF!"}," "]
["Seaside Sparrow",null," ",{"$error":"#REF!"}," "]
["Fox Sparrow",null," ",{"$error":"#REF!"}," "]
["Song Sparrow",null," ",{"$error":"#REF!"}," "]
["Lincoln's Sparrow",null," ",{"$error":"#REF!"}," "]
["Swamp Sparrow",null," ",{"$error":"#REF!"}," "]
["White-throated Sparrow",null," ",{"$error":"#REF!"}," "]
["Harris' Sparrow",null," ",{"$error":"#REF!"}," "]
["White-crowned Sparrow",null," ",{"$error":"#REF!"}," "]
["Golden-crowned Sparrow",null," ",{"$error":"#REF!"}," "]
["Dark-eyed \"Slate-colored\" Junco",null," ",{"$error":"#REF!"}," "]
["\"Gray-headed\" Junco",null," ",{"$error":"#REF!"}," "]
["\"Oregon\" Junco",null," ",{"$error":"#REF!"}," "]
["McCown's Longspur",null," ",{"$error":"#REF!"}," "]
["Lapland Longspur",null," ",{"$error":"#REF!"}," "]
["Smith's Longspur",null," ",{"$error":"#REF!"}," "]
["Chestnut-collared Longspur",null," ",{"$error":"#REF!"}," "]
["Northern Cardinal",null," ",{"$error":"#REF!"}," "]
["Rose-breasted Grosbeak",null," ",{"$error":"#REF!"}," "]
["Black-headed Grosbeak",null," ",{"$error":"#REF!"}," "]
["Blue Bunting",null," ",{"$error":"#REF!"}," "]
["Blue Grosbeak",null," ",{"$error":"#REF!"}," "]
["Lazuli Bunting",null," ",{"$error":"#REF!"}," "]
["Indigo Bunting",null," ",{"$error":"#REF!"}," "]
["Painted Bunting",null," ",{"$error":"#REF!"}," "]
["Dickcissel",null," ",{"$error":"#REF!"}," "]
["Bobolink",null," ",{"$error":"#REF!"}," "]
["Red-winged Blackbird",null," ",{"$error":"#REF!"}," "]
["Eastern Meadowlark",null," ",{"$error":"#REF!"}," "]
["Western Meadowlark",null," ",{"$error":"#REF!"}," "]
["Yellow-headed Blackbird",null," ",{"$error":"#REF!"}," "]
["Rusty Blackbird",null," ",{"$error":"#REF!"}," "]
["Brewer's Blackbird",null," ",{"$error":"#REF!"}," "]
["Common Grackle",null," ",{"$error":"#REF!"}," "]
["Boat-tailed Grackle",null," ",{"$error":"#REF!"}," "]
["Great-tailed Grackle",null," ",{"$error":"#REF!"}," "]
["Shiny Cowbird",null," ",{"$error":"#REF!"}," "]
["Bronzed Cowbird",null," ",{"$error":"#REF!"}," "]
["Brown-headed Cowbird",null," ",{"$error":"#REF!"}," "]
["Orchard Oriole",null," ",{"$error":"#REF!"}," "]
["Hooded Oriole",null," ",{"$error":"#REF!"}," "]
["Baltimore Oriole",null," ",{"$error":"#REF!"}," "]
["Bullock's Oriole",null," ",{"$error":"#REF!"}," "]
["Scott's Oriole",null," ",{"$error":"#REF!"}," "]
["Purple Finch",null,{"$f":"IF(B452=\"x\",A452,\" \")","v":" "},{"$error":"#REF!"},{"$f":"IF(ISERROR(D452),\" \",D452)","v":" "}]
["House Finch",null," ",{"$error":"#REF!"}," "]
["Red Crossbill",null," ",{"$error":"#REF!"}," "]
["Pine Siskin",null," ",{"$error":"#REF!"}," "]
["Lesser Goldfinch",null," ",{"$error":"#REF!"}," "]
["American Goldfinch",null," ",{"$error":"#REF!"}," "]
["Evening Grosbeak",null," ",{"$error":"#REF!"}," "]
["House Sparrow",null," ",{"$error":"#REF!"}," "]